bitfinex/quotes_BTCUSD_20240729
["timestamp","ask_amount","ask_price","bid_price","bid_amount"]
[1722224144812,0.003,69513.0,69512.0,0.82915641]
[1722224145392,0.053,69513.0,69512.0,0.59898041]
[1722224145978,0.152,69513.0,69512.0,0.59098041]
[1722224146180,0.15,69513.0,69512.0,0.59179201]
[1722224146387,0.152,69513.0,69512.0,0.61079201]
[1722224146985,0.151,69513.0,69512.0,0.59979201]
[1722224147645,0.152,69513.0,69512.0,0.61079201]
[1722224149898,0.151,69513.0,69512.0,0.60279201]
[1722224150277,0.002,69513.0,69512.0,0.61579201]
[1722224150477,0.052,69513.0,69512.0,0.61579201]
[1722224150702,0.002,69513.0,69512.0,0.61579201]
[1722224150868,0.052,69513.0,69512.0,0.61579201]
[1722224151521,0.052,69513.0,69512.0,0.9655766]
[1722224152018,0.002,69513.0,69512.0,0.7354006]
[1722224152249,0.052,69513.0,69512.0,0.7354006]
[1722224152379,0.052,69513.0,69512.0,0.9655766]
[1722224153036,0.052,69513.0,69512.0,0.7354006]
[1722224153243,0.052,69513.0,69512.0,0.61579201]
[1722224153447,0.052,69513.0,69512.0,0.96557661]
[1722224153847,0.052,69513.0,69512.0,0.73540061]
[1722224154933,0.152,69513.0,69512.0,0.73540061]
[1722224155103,0.152,69513.0,69512.0,0.38561601]
[1722224155701,0.052,69513.0,69512.0,0.61579201]
[1722224155904,0.052,69513.0,69512.0,0.735403]
[1722224156335,0.152,69513.0,69512.0,0.73540062]
[1722224157826,0.052,69513.0,69512.0,0.73540062]
[1722224158035,0.052,69513.0,69512.0,0.96557662]
[1722224158036,0.002,69513.0,69512.0,0.96557662]
[1722224158264,0.002,69513.0,69512.0,1.09647662]
[1722224159514,0.002,69513.0,69512.0,1.03097298]
[1722224160128,0.002,69513.0,69512.0,1.26114898]
[1722224160998,0.00284,69513.0,69512.0,1.26114898]
[1722224161198,0.00184,69513.0,69512.0,1.24814898]
[1722224161539,0.00284,69513.0,69512.0,1.14254401]
[1722224161734,0.00284,69513.0,69512.0,1.03195879]
[1722224161939,0.00184,69513.0,69512.0,1.01795879]
[1722224162193,0.00084,69513.0,69512.0,1.00695879]
[1722224163197,0.00084,69513.0,69512.0,1.02095879]
[1722224163435,0.00084,69513.0,69512.0,1.03495879]
[1722224163673,0.00084,69513.0,69512.0,0.96955879]
[1722224163674,0.05084,69513.0,69512.0,0.96955879]
[1722224163823,0.05084,69513.0,69512.0,0.73938279]
[1722224164025,0.15084,69513.0,69512.0,0.73938279]
[1722224164433,0.15084,69513.0,69512.0,0.50920679]
[1722224164641,0.15084,69513.0,69512.0,0.15944001]
[1722224164986,0.15084,69513.0,69512.0,0.04435201]
[1722224165187,0.15084,69513.0,69512.0,0.028924]
[1722224165384,0.634498,69513.0,69512.0,0.028924]
[1722224165921,0.634498,69513.0,69512.0,0.014924]
[1722224166324,0.404326,69513.0,69512.0,0.004924]
[1722224166526,0.46864176,69513.0,69512.0,0.00589699]
[1722224166733,0.46864176,69513.0,69512.0,0.000924]
[1722224166927,0.46864176,69513.0,69512.0,0.005924]
[1722224167160,0.92898576,69513.0,69512.0,0.008924]
[1722224167573,0.95042434,69513.0,69512.0,0.008924]
[1722224167801,0.95042434,69513.0,69512.0,0.005924]
[1722224167802,0.86467,69513.0,69512.0,0.005924]
[1722224168073,0.86467,69513.0,69512.0,0.009924]
[1722224168295,0.74179927,69513.0,69512.0,0.009924]
[1722224168492,0.51162727,69513.0,69512.0,0.009924]
[1722224168691,0.74179927,69513.0,69512.0,0.009924]
[1722224170130,0.74179927,69513.0,69512.0,0.005924]
[1722224170695,0.74179927,69513.0,69512.0,0.007924]
[1722224170899,0.634498,69513.0,69512.0,0.007924]
[1722224171713,0.00084,69513.0,69512.0,0.007924]
[1722224171936,0.10084,69513.0,69512.0,0.583364]
[1722224172152,0.10084,69513.0,69512.0,0.81851329]
[1722224172388,0.00084,69513.0,69512.0,0.81851329]
[1722224172607,0.00084,69513.0,69512.0,0.81351329]
[1722224172813,0.05084,69513.0,69512.0,0.81351329]
[1722224173025,0.05084,69513.0,69512.0,0.81751329]
[1722224173236,0.05084,69513.0,69512.0,0.81151329]
[1722224173446,0.05084,69513.0,69512.0,0.81351329]
[1722224173666,0.00084,69513.0,69512.0,0.81951329]
[1722224173884,0.05084,69513.0,69512.0,0.81951329]
[1722224174323,0.15084,69513.0,69512.0,0.81951329]
[1722224174534,0.15084,69513.0,69512.0,0.8303067]
[1722224176581,0.15084,69513.0,69512.0,0.8283067]
[1722224177870,0.05084,69513.0,69512.0,0.8323067]
[1722224178095,0.15084,69513.0,69512.0,0.8323067]
[1722224178329,0.00084,69513.0,69512.0,0.8323067]
[1722224179772,0.00084,69513.0,69512.0,1.0624827]
[1722224180015,0.00084,69513.0,69512.0,1.04572777]
[1722224180248,0.00084,69513.0,69512.0,1.16532096]
[1722224180491,0.04292382,69525.0,69523.0,0.230139]
[1722224180714,0.1,69533.0,69523.0,0.230139]
[1722224180715,0.04292382,69532.0,69529.0,0.3]
[1722224180938,0.16164764,69536.0,69534.0,0.575257]
[1722224180939,0.15,69535.0,69534.0,0.575257]
[1722224181163,0.15,69536.0,69535.0,0.575247]
[1722224181396,0.04292382,69538.0,69537.0,0.575232]
[1722224181618,0.09292382,69538.0,69537.0,0.805325]
[1722224181827,0.06438573,69540.0,69539.0,0.805301]
[1722224181828,0.04292382,69540.0,69539.0,0.805301]
[1722224182031,0.09292382,69542.0,69537.0,0.00491663]
[1722224182245,0.0650239,69543.0,69542.0,0.57519]
[1722224182494,0.0150239,69543.0,69542.0,0.81017139]
[1722224183973,0.1758,69547.0,69542.0,0.81017139]
[1722224183974,0.0758,69547.0,69546.0,0.575157]
[1722224184364,0.0787239,69551.0,69550.0,0.805175]
[1722224184365,0.0150239,69551.0,69550.0,0.805175]
[1722224184699,0.06429578,69558.0,69557.0,0.575067]
[1722224184700,0.1,69558.0,69557.0,0.575067]
[1722224185049,0.0150239,69561.0,69560.0,0.115008]
[1722224185265,0.0650239,69561.0,69560.0,0.575042]
[1722224185473,0.0650239,69561.0,69560.0,0.80992203]
[1722224185474,0.0150239,69561.0,69560.0,0.80992203]
[1722224185761,0.0650239,69561.0,69560.0,0.80992203]
[1722224186034,0.1650239,69561.0,69560.0,0.11987103]
[1722224186227,0.1650239,69561.0,69560.0,0.34988803]
[1722224187330,0.1650239,69561.0,69560.0,0.57990503]
[1722224187331,0.1150239,69561.0,69560.0,0.57990503]
[1722224187643,0.00084,69567.0,69566.0,0.3]
[1722224187936,0.00084,69567.0,69566.0,1.104989]
[1722224188073,0.00084,69567.0,69566.0,1.33983496]
[1722224188277,0.00084,69567.0,69566.0,1.43983496]
[1722224188891,0.00084,69567.0,69566.0,1.46583496]
[1722224189128,0.00084,69567.0,69566.0,1.45183496]
[1722224189338,0.00084,69567.0,69566.0,1.4926658]
[1722224189754,0.00084,69567.0,69566.0,2.14936219]
[1722224189960,0.00084,69567.0,69566.0,2.18602835]
[1722224190397,0.00084,69567.0,69566.0,2.17402835]
[1722224190602,0.00084,69567.0,69566.0,2.18802835]
[1722224190806,0.00084,69567.0,69566.0,1.67185561]
[1722224191217,0.00084,69567.0,69566.0,1.60635561]
[1722224191422,0.00084,69567.0,69566.0,1.30086161]
[1722224191633,0.00084,69567.0,69566.0,0.98686161]
[1722224191842,0.00084,69567.0,69566.0,1.71922477]
[1722224192049,0.00084,69567.0,69566.0,1.37869194]
[1722224192248,0.00084,69567.0,69566.0,1.00086161]
[1722224192448,0.00084,69567.0,69566.0,1.31486161]
[1722224193048,0.00084,69567.0,69566.0,0.94846161]
[1722224194050,0.00084,69567.0,69566.0,0.93446161]
[1722224194247,0.00084,69567.0,69566.0,1.24846161]
[1722224195085,0.05084,69567.0,69566.0,0.94846161]
[1722224195324,0.00084,69567.0,69566.0,0.94846161]
[1722224195522,0.00084,69567.0,69566.0,1.24846161]
[1722224196083,0.00084,69567.0,69566.0,1.30608161]
[1722224196843,0.15084,69567.0,69566.0,0.09046896]
[1722224197045,0.15084,69567.0,69566.0,0.20546696]
[1722224197259,0.23134,69567.0,69566.0,0.09046896]
[1722224197458,0.576331,69567.0,69566.0,0.03284896]
[1722224197672,0.23134,69567.0,69566.0,0.014]
[1722224197899,0.23134,69567.0,69566.0,0.358995]
[1722224198147,0.23134,69567.0,69566.0,0.82408893]
[1722224198148,0.08134,69567.0,69566.0,0.82408893]
[1722224198372,0.08134,69567.0,69566.0,0.83008893]
[1722224198585,0.08134,69567.0,69566.0,0.81608893]
[1722224198808,0.00084,69567.0,69566.0,0.82008893]
[1722224199213,0.00084,69567.0,69566.0,0.81608893]
[1722224199594,0.00084,69567.0,69566.0,0.83008893]
[1722224200113,0.00084,69567.0,69566.0,0.82408893]
[1722224200313,0.05084,69567.0,69566.0,0.83808893]
[1722224200617,0.05084,69567.0,69566.0,0.82408893]
[1722224201243,0.05084,69567.0,69566.0,0.60809193]
[1722224201724,0.05084,69567.0,69566.0,0.37809493]
[1722224202102,0.05084,69567.0,69566.0,0.60809193]
[1722224202302,0.15084,69567.0,69566.0,0.37809493]
[1722224202507,0.15084,69567.0,69566.0,0.03309993]
[1722224202508,0.23174,69567.0,69566.0,0.03309993]
[1722224202715,0.23174,69567.0,69566.0,0.14809793]
[1722224203307,0.411737,69567.0,69566.0,0.03309993]
[1722224203525,0.29674,69567.0,69566.0,0.03309993]
[1722224203749,0.29674,69567.0,69566.0,0.028]
[1722224203978,0.411737,69567.0,69566.0,0.03263679]
[1722224204193,0.29674,69567.0,69566.0,0.11963479]
[1722224204379,0.29674,69567.0,69566.0,0.13063479]
[1722224204584,0.29674,69567.0,69566.0,0.14363479]
[1722224205353,0.29674,69567.0,69566.0,0.02863679]
[1722224205562,0.29674,69567.0,69566.0,0.024]
[1722224205961,0.29674,69567.0,69566.0,0.02863679]
[1722224206164,0.29674,69567.0,69566.0,0.14363479]
[1722224207029,0.29674,69567.0,69566.0,0.02863679]
[1722224207572,0.29674,69567.0,69566.0,0.14363479]
[1722224209420,0.29674,69567.0,69566.0,0.37363179]
[1722224210196,0.29674,69567.0,69566.0,0.14363479]
[1722224211435,0.29674,69567.0,69566.0,0.02863679]
[1722224211797,0.29674,69567.0,69566.0,0.024]
[1722224212008,0.29674,69567.0,69566.0,0.02863673]
[1722224212626,0.29674,69567.0,69566.0,0.14363473]
[1722224213451,0.29674,69567.0,69566.0,0.14815443]
[1722224213853,0.29674,69567.0,69566.0,0.14363473]
[1722224214052,0.29674,69567.0,69566.0,0.26315243]
[1722224215340,0.29674,69567.0,69566.0,0.14815443]
[1722224215960,0.29674,69567.0,69566.0,0.26315243]
[1722224217177,0.13174,69567.0,69566.0,0.72314643]
[1722224217371,0.13174,69567.0,69566.0,1.25314343]
[1722224217372,0.00084,69567.0,69566.0,1.25314343]
[1722224218189,0.00084,69567.0,69566.0,1.31684343]
[1722224219321,0.00084,69567.0,69566.0,1.54684043]
[1722224220070,0.00084,69567.0,69566.0,1.53584043]
[1722224220223,0.00084,69567.0,69566.0,1.75249122]
[1722224220661,0.00084,69567.0,69566.0,1.5368203]
[1722224220861,0.00084,69567.0,69566.0,1.48712031]
[1722224222194,0.05084,69567.0,69566.0,1.25712331]
[1722224222393,0.05084,69567.0,69566.0,1.25712462]
[1722224222394,0.00084,69567.0,69566.0,1.25712462]
[1722224223460,0.05084,69567.0,69566.0,1.25712462]
[1722224223677,0.00084,69567.0,69566.0,1.25712462]
[1722224223872,0.05084,69567.0,69566.0,1.25712462]
[1722224224453,0.12594,69567.0,69566.0,1.02712762]
[1722224224810,0.22594,69567.0,69566.0,0.26713362]
[1722224225432,0.22594,69567.0,69566.0,0.49713062]
[1722224226074,0.12594,69567.0,69566.0,0.49713062]
[1722224226262,0.17594,69567.0,69566.0,0.49713062]
[1722224226466,0.22594,69567.0,69566.0,0.49713062]
[1722224227480,0.22594,69567.0,69566.0,0.72712762]
[1722224227481,0.12594,69567.0,69566.0,0.72712762]
[1722224227612,0.22594,69567.0,69566.0,0.49713062]
[1722224228702,0.22594,69567.0,69566.0,0.37763173]
[1722224228904,0.22594,69567.0,69566.0,0.49714113]
[1722224229351,0.22594,69567.0,69566.0,0.72713813]
[1722224229352,0.15084,69567.0,69566.0,0.72713813]
[1722224230115,0.15084,69567.0,69566.0,0.49714113]
[1722224230522,0.15084,69567.0,69566.0,0.72713813]
[1722224231597,0.15084,69567.0,69566.0,0.49714113]
[1722224231797,0.15084,69567.0,69566.0,0.49714565]
[1722224232039,0.15084,69567.0,69566.0,0.37763173]
[1722224232886,0.15084,69567.0,69566.0,0.03263673]
[1722224233085,0.21084,69567.0,69566.0,0.03263673]
[1722224233287,0.21084,69567.0,69566.0,0.028]
[1722224233463,0.21084,69567.0,69566.0,0.03263648]
[1722224233464,0.408737,69567.0,69566.0,0.03263648]
[1722224233948,0.47310178,69567.0,69566.0,0.03263648]
[1722224234159,0.70309578,69567.0,69566.0,0.028]
[1722224234363,0.70309578,69567.0,69559.0,0.115009]
[1722224234364,0.05,69560.0,69559.0,0.115009]
[1722224234567,0.2329,69560.0,69559.0,0.00465222]
[1722224234816,0.2329,69560.0,69559.0,0.34968222]
[1722224234988,0.2329,69560.0,69559.0,0.17730022]
[1722224235169,0.2967,69560.0,69559.0,0.06229022]
[1722224235375,0.33961697,69560.0,69559.0,0.06229022]
[1722224235626,0.33961697,69560.0,69559.0,0.17730022]
[1722224236068,0.33961697,69560.0,69559.0,0.40732022]
[1722224236368,0.2967,69560.0,69559.0,0.40732022]
[1722224236573,0.2967,69560.0,69559.0,0.41832022]
[1722224236897,0.2967,69560.0,69559.0,0.18830022]
[1722224237220,0.2967,69560.0,69559.0,0.07329022]
[1722224237445,0.2967,69560.0,69559.0,0.18830022]
[1722224237764,0.2967,69560.0,69559.0,0.08629022]
[1722224238406,0.2967,69560.0,69559.0,0.02865222]
[1722224238407,0.49754914,69560.0,69559.0,0.02865222]
[1722224238612,0.641725,69560.0,69559.0,0.02865222]
[1722224238757,0.51900942,69560.0,69559.0,0.024]
[1722224238937,0.40400142,69560.0,69559.0,0.02911799]
[1722224239829,0.51900942,69560.0,69559.0,0.02911799]
[1722224240278,0.51900942,69560.0,69559.0,0.024]
[1722224240403,0.74902642,69560.0,69559.0,0.024]
[1722224240999,0.641725,69560.0,69559.0,0.024]
[1722224241199,1.101759,69560.0,69559.0,0.024]
[1722224241433,1.000511,69560.0,69559.0,0.02911799]
[1722224241628,0.871742,69560.0,69559.0,0.024]
[1722224243027,0.641725,69560.0,69559.0,0.024]
[1722224243657,0.2967,69560.0,69559.0,0.024]
[1722224243858,0.2967,69560.0,69559.0,0.36903]
[1722224244061,0.2967,69560.0,69559.0,0.14412864]
[1722224244439,0.40401315,69560.0,69559.0,0.14412864]
[1722224244839,0.2967,69560.0,69559.0,0.14412864]
[1722224245539,0.10731315,69561.0,69559.0,0.02911864]
[1722224245792,0.1,69563.0,69559.0,0.02911864]
[1722224245793,0.15,69562.0,69561.0,0.345019]
[1722224245987,0.15,69562.0,69561.0,0.58014568]
[1722224246215,0.15,69562.0,69561.0,0.35013268]
[1722224247012,0.05,69562.0,69561.0,0.58014568]
[1722224247458,0.14292486,69563.0,69562.0,0.575025]
[1722224247459,0.19292486,69563.0,69562.0,0.575025]
[1722224247814,0.19292486,69563.0,69562.0,0.57967146]
[1722224248236,0.19292272,69563.0,69562.0,0.57967146]
[1722224248659,0.05,69563.0,69562.0,0.80968146]
[1722224249347,0.15,69563.0,69562.0,0.80968146]
[1722224250271,0.15,69563.0,69562.0,0.57967146]
[1722224250721,0.15,69563.0,69562.0,0.34966146]
[1722224250970,0.21436923,69563.0,69562.0,0.34966146]
[1722224251197,0.21436923,69563.0,69562.0,0.59267146]
[1722224251198,0.15,69563.0,69562.0,0.59267146]
[1722224251407,0.15,69563.0,69562.0,0.57967146]
[1722224251606,0.15,69563.0,69562.0,0.59267146]
[1722224251808,0.15,69563.0,69562.0,0.60667146]
[1722224252054,0.15,69563.0,69562.0,0.59267146]
[1722224252492,0.15,69563.0,69562.0,0.60467146]
[1722224252894,0.15,69563.0,69562.0,0.59167146]
[1722224254639,0.15,69563.0,69562.0,0.36166146]
[1722224255555,0.15,69563.0,69562.0,0.37166146]
[1722224256671,0.1,69563.0,69562.0,0.37166146]
[1722224256880,0.15,69563.0,69562.0,0.37166146]
[1722224257292,0.1,69563.0,69562.0,0.37166146]
[1722224258138,0.15,69563.0,69562.0,0.37166146]
[1722224259187,0.2258,69563.0,69562.0,0.14165146]
[1722224259599,0.22664,69563.0,69562.0,0.14165146]
[1722224259801,0.48997836,69563.0,69562.0,0.02664646]
[1722224260085,0.9714512,69563.0,69562.0,0.02664646]
[1722224260295,0.864157,69563.0,69562.0,0.022]
[1722224260748,0.887157,69563.0,69562.0,0.022]
[1722224261198,1.117164,69563.0,69562.0,0.022]
[1722224262758,1.13972944,69563.0,69562.0,0.022]
[1722224263112,1.117164,69563.0,69562.0,0.022]
[1722224263659,1.117164,69563.0,69562.0,0.012]
[1722224264018,1.267164,69563.0,69562.0,0.02]
[1722224264613,1.267164,69563.0,69562.0,0.008]
[1722224264614,1.497171,69563.0,69562.0,0.008]
[1722224264857,0.15,69547.0,69546.0,0.4721]
[1722224265097,0.33169311,69547.0,69546.0,0.4721]
[1722224265329,0.40383,69547.0,69546.0,0.47725125]
[1722224265546,0.33169081,69547.0,69546.0,0.587131]
[1722224265736,0.27059081,69547.0,69546.0,0.82234525]
[1722224265920,0.27059081,69547.0,69546.0,0.35024525]
[1722224266062,0.22059094,69547.0,69546.0,0.35024525]
[1722224266277,0.27059094,69547.0,69546.0,0.35024525]
[1722224266482,0.29315864,69547.0,69546.0,0.36424525]
[1722224266729,0.29315864,69547.0,69546.0,0.13418225]
[1722224267198,0.2502677,69547.0,69546.0,0.13418225]
[1722224267444,0.2502677,69547.0,69546.0,0.14818225]
[1722224267645,0.2277,69547.0,69546.0,0.14818225]
[1722224268935,0.2277,69547.0,69546.0,0.60830825]
[1722224269852,0.15,69549.0,69548.0,0.345084]
[1722224270058,0.1,69549.0,69548.0,0.345084]
[1722224270263,0.1,69549.0,69548.0,0.81034275]
[1722224270651,0.15,69549.0,69548.0,0.81034275]
[1722224270880,0.17256661,69549.0,69548.0,0.81034275]
[1722224271091,0.17256661,69549.0,69548.0,0.59428675]
[1722224271943,0.17256661,69549.0,69548.0,0.60452754]
[1722224273491,0.02256661,69549.0,69548.0,0.83458354]
[1722224273709,0.12256661,69549.0,69548.0,0.83458354]
[1722224273924,0.07256661,69549.0,69548.0,0.83458354]
[1722224275652,0.17256661,69549.0,69548.0,0.83458354]
[1722224277632,0.07256661,69549.0,69548.0,0.83458354]
[1722224277832,0.17256661,69549.0,69548.0,0.83458354]
[1722224279037,0.17256661,69549.0,69548.0,0.84858354]
[1722224279242,0.15,69549.0,69548.0,0.84858354]
[1722224280938,0.05,69549.0,69548.0,0.84858354]
[1722224281156,0.15,69549.0,69548.0,0.84858354]
[1722224282490,0.04294239,69550.0,69549.0,0.575132]
[1722224282695,0.09294239,69550.0,69549.0,0.575132]
[1722224282847,0.09294239,69550.0,69549.0,0.81032904]
[1722224283267,0.04294239,69550.0,69549.0,1.04038204]
[1722224283594,0.04294239,69555.0,69553.0,0.23004]
[1722224283824,0.09294239,69557.0,69553.0,0.23004]
[1722224284072,0.09294239,69557.0,69556.0,0.575075]
[1722224284278,0.04294156,69560.0,69558.0,0.0655]
[1722224284477,0.05084,69563.0,69562.0,0.115005]
[1722224284646,0.05084,69563.0,69562.0,0.345015]
[1722224284848,0.05084,69563.0,69562.0,0.87294681]
[1722224285059,0.10084,69563.0,69562.0,0.87294681]
[1722224285287,0.05084,69563.0,69562.0,0.87294681]
[1722224285662,0.12340226,69563.0,69562.0,0.88694681]
[1722224286063,0.02340226,69563.0,69562.0,1.10295681]
[1722224286292,0.00084,69563.0,69562.0,1.10295681]
[1722224286476,0.00084,69563.0,69562.0,1.2364618]
[1722224286672,0.00084,69563.0,69562.0,1.4804674]
[1722224287035,0.00084,69563.0,69562.0,1.48046312]
[1722224287605,0.00084,69563.0,69562.0,1.46646312]
[1722224287738,0.00084,69563.0,69562.0,1.48046312]
[1722224288372,0.00084,69563.0,69562.0,1.48246312]
[1722224288573,0.00084,69563.0,69562.0,1.54796312]
[1722224288779,0.00084,69563.0,69562.0,1.64796312]
[1722224288952,0.00084,69567.0,69566.0,1.564983]
[1722224289325,0.00084,69567.0,69566.0,1.6364836]
[1722224289531,0.02339877,69567.0,69566.0,1.6364836]
[1722224290285,0.02339877,69567.0,69566.0,1.92147439]
[1722224290487,0.02339877,69567.0,69566.0,2.44627078]
[1722224290488,0.00084,69567.0,69566.0,2.44627078]
[1722224290710,0.00084,69567.0,69566.0,2.46025668]
[1722224291317,0.00084,69567.0,69566.0,2.47425668]
[1722224292058,0.00084,69567.0,69566.0,2.50309668]
[1722224292267,1e-06,69567.0,69566.0,2.59764023]
[1722224292473,0.0081,69583.0,69582.0,1.334748]
[1722224292474,0.00804456,69583.0,69582.0,1.334748]
[1722224292684,0.00804456,69583.0,69582.0,1.465348]
[1722224292892,0.00804456,69583.0,69582.0,1.57040868]
[1722224293102,0.00804456,69583.0,69582.0,1.50530868]
[1722224293274,0.05804456,69583.0,69582.0,0.90986468]
[1722224293880,0.15804456,69583.0,69582.0,0.57992068]
[1722224294283,0.15804456,69583.0,69582.0,0.34997668]
[1722224294447,0.15804456,69583.0,69582.0,0.36397668]
[1722224294893,0.15804456,69583.0,69582.0,0.01906068]
[1722224295071,0.15804456,69583.0,69582.0,0.12003268]
[1722224295266,0.15804456,69583.0,69582.0,0.34997668]
[1722224296019,0.15804456,69583.0,69582.0,0.12003268]
[1722224296307,0.29904456,69583.0,69582.0,0.00506068]
[1722224296610,0.29904456,69583.0,69582.0,0.028]
[1722224296775,0.29904456,69583.0,69582.0,0.128972]
[1722224296930,0.29904456,69583.0,69582.0,0.12003273]
[1722224297135,0.29904456,69583.0,69582.0,0.13403273]
[1722224297335,0.29904456,69583.0,69582.0,0.37097673]
[1722224297540,0.29904456,69583.0,69582.0,0.35697673]
[1722224297742,0.32160206,69583.0,69582.0,0.34997673]
[1722224298173,0.29904456,69583.0,69582.0,0.34997673]
[1722224298374,0.29904456,69583.0,69582.0,0.35597673]
[1722224299657,0.29904456,69583.0,69582.0,0.34997673]
[1722224300057,0.29904456,69583.0,69582.0,0.35597673]
[1722224300495,0.29904456,69583.0,69582.0,0.34997673]
[1722224301095,0.29904456,69583.0,69582.0,0.57992073]
[1722224301323,0.23704456,69583.0,69582.0,0.64353973]
[1722224301520,0.25960173,69583.0,69582.0,0.64353973]
[1722224301898,0.03060173,69583.0,69582.0,0.64353973]
[1722224302143,0.03060173,69583.0,69582.0,0.87348373]
[1722224302702,0.03060173,69583.0,69582.0,0.86748373]
[1722224302919,0.18060173,69583.0,69582.0,0.86748373]
[1722224303137,0.18060173,69583.0,69582.0,0.87448373]
[1722224303596,0.18060173,69583.0,69582.0,0.64453973]
[1722224303758,0.25800173,69583.0,69582.0,0.40759573]
[1722224303973,0.25800173,69583.0,69582.0,0.65053973]
[1722224304389,0.25800173,69583.0,69582.0,0.65853973]
[1722224304688,0.25800173,69583.0,69582.0,0.64553973]
[1722224305345,0.32020173,69583.0,69582.0,0.64553973]
[1722224305756,0.32020173,69583.0,69582.0,0.41559573]
[1722224306196,0.32020173,69583.0,69582.0,0.02406073]
[1722224306455,0.32020173,69583.0,69582.0,0.13903273]
[1722224306649,0.32020173,69583.0,69582.0,0.01306073]
[1722224307336,0.32020173,69583.0,69582.0,0.008]
[1722224307470,0.29764456,69583.0,69582.0,0.02360007]
[1722224307671,0.29764456,69583.0,69582.0,0.01560007]
[1722224309317,0.41261456,69583.0,69582.0,0.01560007]
[1722224309629,0.41261456,69583.0,69582.0,0.011]
[1722224309630,0.64255556,69583.0,69582.0,0.011]
[1722224309832,0.64255556,69583.0,69582.0,0.025]
[1722224310033,0.64255556,69583.0,69582.0,0.011]
[1722224310418,0.64255556,69583.0,69582.0,0.025]
[1722224310825,0.66511396,69583.0,69582.0,0.025]
[1722224311051,0.05804456,69583.0,69582.0,0.59986]
[1722224311248,0.00804456,69583.0,69582.0,0.60492035]
[1722224311448,0.00804456,69583.0,69582.0,0.83486435]
[1722224311852,0.00804456,69583.0,69582.0,0.93486435]
[1722224312054,0.00804456,69583.0,69582.0,1.17492732]
[1722224312656,0.00804456,69583.0,69582.0,1.34589441]
[1722224313022,0.00804456,69583.0,69582.0,1.35989441]
[1722224313223,0.00804456,69583.0,69582.0,1.34589441]
[1722224313625,0.00804456,69583.0,69582.0,1.35989441]
[1722224313922,0.00804456,69583.0,69582.0,1.34589441]
[1722224314159,0.00804456,69583.0,69582.0,1.34889441]
[1722224314580,0.00804456,69583.0,69582.0,1.36089441]
[1722224314723,0.00804456,69583.0,69582.0,1.36088874]
[1722224314926,0.00804456,69583.0,69582.0,1.34888874]
[1722224315325,0.00804456,69583.0,69582.0,1.94833213]
[1722224315555,0.0081,69586.0,69585.0,1.314603]
[1722224315792,0.0081,69586.0,69585.0,2.69538502]
[1722224316036,0.0081,69595.0,69594.0,1.614468]
[1722224316238,0.0081,69595.0,69594.0,1.83392942]
[1722224316411,0.0081,69595.0,69594.0,1.83926473]
[1722224316844,0.0081,69595.0,69594.0,1.83726473]
[1722224317251,0.0081,69595.0,69594.0,1.87814288]
[1722224317452,0.0081,69595.0,69594.0,1.88014288]
[1722224317676,0.0081,69595.0,69594.0,2.11004688]
[1722224317880,0.0081,69595.0,69594.0,1.88011551]
[1722224318081,0.03064886,69595.0,69594.0,1.88011551]
[1722224318283,0.0081,69595.0,69594.0,2.25311804]
[1722224318492,0.0081,69595.0,69594.0,2.04421404]
[1722224318692,0.0081,69595.0,69594.0,1.77600581]
[1722224318893,0.0081,69595.0,69594.0,1.6996365]
[1722224319107,0.0081,69595.0,69594.0,1.7136365]
[1722224319316,0.0081,69595.0,69594.0,1.6996365]
[1722224319533,0.0081,69595.0,69594.0,1.70981998]
[1722224319734,0.0081,69595.0,69594.0,1.86141998]
[1722224320294,0.0081,69595.0,69594.0,1.84741998]
[1722224320503,0.0081,69595.0,69594.0,1.86142365]
[1722224320729,0.0081,69595.0,69594.0,1.75798679]
[1722224320933,0.0081,69595.0,69594.0,1.86342115]
[1722224321252,0.0081,69595.0,69594.0,1.87742115]
[1722224321605,0.03064896,69595.0,69594.0,1.86142115]
[1722224321868,0.03064896,69595.0,69594.0,1.87542115]
[1722224321869,0.0081,69595.0,69594.0,1.87542115]
[1722224323196,0.0081,69595.0,69594.0,1.86142115]
[1722224323406,0.0081,69595.0,69594.0,1.84742115]
[1722224323804,0.0081,69595.0,69594.0,1.86142115]
[1722224324014,0.0081,69595.0,69594.0,1.7351237]
[1722224324216,0.0081,69595.0,69594.0,1.2835237]
[1722224324421,0.0081,69595.0,69594.0,1.5835237]
[1722224324574,0.0081,69595.0,69594.0,1.5975237]
[1722224325008,0.0081,69595.0,69594.0,1.5695237]
[1722224325207,0.03064948,69595.0,69594.0,1.5695237]
[1722224325429,0.03064948,69595.0,69594.0,1.5975237]
[1722224327025,0.05,69611.0,69608.0,0.804503]
[1722224327202,0.0581,69609.0,69608.0,0.804503]
[1722224327389,0.0581,69609.0,69608.0,0.57994064]
[1722224327597,0.1581,69609.0,69608.0,0.57994064]
[1722224328026,0.0581,69609.0,69608.0,0.80979864]
[1722224328232,0.0581,69609.0,69608.0,0.82379864]
[1722224328451,0.0581,69609.0,69608.0,0.83779864]
[1722224328668,0.0581,69609.0,69608.0,0.82379864]
[1722224329097,0.0581,69609.0,69608.0,0.83779864]
[1722224329550,0.0581,69609.0,69608.0,0.82379864]
[1722224330211,0.0581,69609.0,69608.0,0.88139164]
[1722224330744,0.0581,69609.0,69608.0,0.89140791]
[1722224330981,0.2068,69609.0,69608.0,0.89140791]
[1722224332086,0.2068,69609.0,69608.0,0.67554991]
[1722224340269,0.2568,69609.0,69608.0,0.20581764]
[1722224340494,0.3068,69609.0,69608.0,0.09088864]
[1722224340728,0.3068,69609.0,69608.0,0.20581764]
[1722224340973,0.3068,69609.0,69608.0,0.09088864]
[1722224341392,0.881437,69609.0,69608.0,0.09088864]
[1722224341614,0.651582,69609.0,69608.0,0.03329564]
[1722224341859,0.651582,69609.0,69608.0,0.028]
[1722224342005,0.881437,69609.0,69608.0,0.028]
[1722224342421,0.05,69600.0,69599.0,0.114943]
[1722224342627,0.2892,69600.0,69599.0,0.114943]
[1722224342880,0.2892,69600.0,69599.0,0.35015097]
[1722224343630,0.2892,69600.0,69599.0,0.13426297]
[1722224344169,0.2892,69600.0,69599.0,0.01931997]
[1722224345635,0.31175103,69600.0,69599.0,0.01931997]
[1722224346426,0.2892,69600.0,69599.0,0.01931997]